[Event "Superbet Blitz Poland 2023"]
[Site "Warsaw"]
[Date "2023.05.25"]
[Round "15"]
[White "Vachier-Lagrave, Maxime"]
[Black "Shevchenko, Kirill"]
[Result "0-1"]
[ECO "B31"]
[WhiteElo "2742"]
[BlackElo "2684"]
[Annotator "TA"]
[PlyCount "86"]
[EventDate "2023.05.24"]
[EventType "tourn"]
[EventCountry "POL"]
[SourceTitle "playchess.com"]
[Source "ChessBase"]
[SourceQuality "1"]
[TimeControl "300+2"]

{[%evp 9,86,6,16,0,14,-9,0,0,9,0,0,-55,-54,-66,-58,-88,-81,-88,-83,-176,-174,-189,-43,-53,-47,-106,0,0,0,0,0,-31,-47,-50,-17,-39,-22,-82,-83,-76,-83,-81,-75,-81,-81,-87,-72,-91,0,0,0,-90,-69,-83,-68,-69,-69,-87,-105,-136,-145,-131,-140,-236,-243,-264,-264,-264,-239,-264,-216,-216,-216,-390,-270,-272,-262,-444,-444]} 1. e4 {[%emt 0:00:01]} c5 {[%emt 0:00:01]} 2. Nf3 {[%emt 0:00:01]} Nc6 {[%emt 0:00:02]} 3. Bb5 {[%emt 0:00:02]} g6 {[%emt 0:00:01]} 4. O-O {[%emt 0:00:03]} Bg7 {[%emt 0:00:01]} 5. c3 {[%emt 0:00:01]} Nf6 {[%emt 0:00:04]} 6. Qe2 {[%emt 0:00:02] B31: Sicilian: 2...Nc6 3 Bb5 g6.} e5 $5 {[%emt 0:00:21][%mdl 4] Leaves trodden paths.} 7. Bxc6 {[%emt 0:00:02]} bxc6 {[%emt 0:00:15]} 8. Nxe5 {[%emt 0:00:01] The position is equal.} O-O {[%emt 0:00:01]} 9. d3 {[%emt 0:00:20]} (9. d4 {seems wilder.} Re8 10. Bg5 d5 11. Nd2) 9... Re8 {[%emt 0:00:16] [#]} 10. f4 $146 {[%emt 0:00:01]} (10. Nf3 $11) ({Predecessor:} 10. Nf3 d5 11. Bg5 Qb6 12. Bxf6 Bxf6 13. Re1 Rb8 14. Nbd2 Bg7 15. Qe3 Be6 16. e5 {0-1 Das,S (2459)-Fawzy,A (2490) Guwahati op 1st 2022 (9)}) 10... d6 $1 $15 {[%emt 0:00:18]} 11. Nf3 {[%emt 0:00:01] [#]} (11. Nxc6 $2 Qb6 12. Nxa7 Qxa7 $19) 11... c4 $1 {[%emt 0:00:01] White must now prevent ...cxd3.} 12. Nbd2 {[%emt 0:00:02]} (12. d4 Rxe4) 12... cxd3 {[%emt 0:00:03]} 13. Qxd3 {[%emt 0:00:01]} Qb6+ {[%emt 0:00:04]} 14. Kh1 {[%emt 0:00:03]} (14. Qd4 $17) 14... Ba6 $19 {[%emt 0:00:02]} 15. c4 {[%emt 0:00:07] [#]} d5 {[%emt 0:00:28]} 16. e5 $15 {[%emt 0:00:02]} Ng4 {[%emt 0:00:03]} 17. Qe2 {[%emt 0:00:03]} (17. b3 $15) 17... dxc4 {[%emt 0:00:02] Black is much more active.} (17... Ne3 $17 {[%cal Re3c4]} 18. Re1 Nc2) 18. Nxc4 $11 {[%emt 0:00:10]} Bxc4 {[%emt 0:00:45]} 19. Qxc4 {[%emt 0:00:01]} Nf2+ {[%emt 0:00:07]} 20. Rxf2 {[%emt 0:00:01]} Qxf2 {[%emt 0:00:02]} 21. Bd2 {[%emt 0:00:01]} Rad8 {[%emt 0:00:14]} (21... Qb6 $5 {[%cal Rb6b2]}) 22. Bc3 {[%emt 0:00:07]} Qc2 {[%emt 0:00:06]} 23. h3 {[%emt 0:00:34]} (23. Qxc6 $11 Re6 24. Qc4) 23... Rd1+ $17 {[%emt 0:00:09]} 24. Rxd1 {[%emt 0:00:01]} Qxd1+ {[%emt 0:00:01]} 25. Kh2 {[%emt 0:00:01]} Qd5 {[%emt 0:00:01]} 26. Qa4 {[%emt 0:00:09]} Bh6 {[%emt 0:00:01]} 27. Kg3 {[%emt 0:00:01]} Qd7 {[%emt 0:00:10]} 28. Bd4 {[%emt 0:00:18]} Qf5 {[%emt 0:00:01]} (28... Bf8 $17) 29. Be3 $1 $11 {[%emt 0:00:06]} Qd7 {[%emt 0:00:12]} 30. a3 {[%emt 0:00:08]} (30. Qxa7 Qxa7 31. Bxa7 Ra8 $17) (30. Bxa7 $2 Ra8 31. Qd4 Qxa7 $19) (30. Bd4 $1 $11 {remains equal.}) 30... Rb8 $36 {[%emt 0:00:02][%mdl 2048] Black has the initiative.} 31. b4 {[%emt 0:00:05]} Rb7 {[%emt 0:00:03]} 32. Qc2 {[%emt 0:00:09]} Qd5 {[%emt 0:00:03]} 33. Nd4 {[%emt 0:00:43]} Rc7 {[%emt 0:00:00]} 34. Nb3 {[%emt 0:00:02]} g5 {[%emt 0:00:14]} 35. fxg5 {[%emt 0:00:02]} Bg7 {[%emt 0:00:01]} (35... Qxe5+ $2 36. Bf4 Qe1+ 37. Qf2 (37. Kh2 Bxg5 38. Bg3 Qe7 $11) 37... Qc3+ 38. Qf3 Qxf3+ 39. gxf3 $18) 36. Nc5 {[%emt 0:00:04]} (36. Kf2 $17) 36... Bxe5+ $19 {[%emt 0:00:08]} 37. Kf2 {[%emt 0:00:03]} Re7 {[%emt 0:00:00]} 38. Ne4 {[%emt 0:00:22]} Bd4 {[%emt 0:00:26]} 39. Nf6+ {[%emt 0:00:01]} Bxf6 {[%emt 0:00:02]} 40. gxf6 {[%emt 0:00:01]} Re4 {[%emt 0:00:09]} 41. Qc3 $2 {[%emt 0:00:22]} (41. Qc5) 41... a6 {[%emt 0:00:02] Strongly threatening ...Rc4.} 42. Kg1 {[%emt 0:00:16]} h5 {[%emt 0:00:01]} 43. Bf4 $2 {[%emt 0:00:16]} (43. Bf2 Qd6 44. Qf3) 43... Qd4+ {[%emt 0:00:07] Weighted Error Value: White=0.32/Black=0.20 (precise)} ({Weaker is} 43... Rxf4 44. Qg3+ $11) ({And not} 43... Qd1+ 44. Kh2 Qd5 45. Qg3+ Kf8 46. Bb8 $17) 0-1

[Event "Superbet Blitz Poland 2023"]
[Site "Warsaw"]
[Date "2023.05.25"]
[Round "15"]
[White "Duda, Jan-Krzysztof"]
[Black "So, Wesley"]
[Result "1-0"]
[ECO "C65"]
[WhiteElo "2724"]
[BlackElo "2760"]
[Annotator "TA"]
[PlyCount "75"]
[EventDate "2023.05.24"]
[EventType "tourn"]
[EventCountry "POL"]
[SourceTitle "playchess.com"]
[Source "ChessBase"]
[SourceQuality "1"]
[TimeControl "300+2"]

{[%evp 9,75,28,22,25,35,20,27,5,12,3,25,12,53,47,52,3,34,32,87,62,81,71,72,65,99,14,14,14,18,14,115,115,119,119,119,123,169,169,169,169,208,202,255,255,291,291,327,327,318,318,304,299,29975,29976,29976,29977,29977,29978,29978,29979,29979,29980,29980,29981,29981,29982,29981,29982]} 1. e4 {[%emt 0:00:01]} e5 {[%emt 0:00:01]} 2. Nf3 {[%emt 0:00:01]} Nc6 {[%emt 0:00:01]} 3. Bb5 {[%emt 0:00:01]} Nf6 {[%emt 0:00:01]} 4. d3 {[%emt 0:00:01]} Bc5 {[%emt 0:00:01]} 5. Bxc6 {[%emt 0:00:02]} dxc6 {[%emt 0:00:01]} 6. O-O {[%emt 0:00:02] C65: Ruy Lopez: Berlin Defence (3...Nf6), unusual lines and 4 0-0 Bc5.} Qd6 {[%emt 0:00:02]} 7. c3 {[%emt 0:00:03] Black must now prevent d4.} Bg4 {[%emt 0:00:03]} 8. h3 {[%emt 0:00:13] White has an edge.} Bxf3 {[%emt 0:00:30]} 9. Qxf3 {[%emt 0:00:01]} O-O-O {[%emt 0:00:12] [#]} 10. Rd1 $146 {[%emt 0:00:02]} ({Predecessor:} 10. Be3 Bxe3 11. Qxe3 Qxd3 12. Qxd3 Rxd3 13. Na3 Nxe4 14. Rad1 Rhd8 15. Rxd3 Rxd3 16. Re1 {0-1 Nee,L-Schinner,A Lueneburg distr-ch U12 2015 (5.7)}) 10... Qe6 {[%emt 0:00:04]} 11. b4 {[%emt 0:00:07]} Be7 {[%emt 0:00:03]} 12. Nd2 {[%emt 0:00:06]} (12. a4 $14) 12... h5 {[%emt 0:00:07]} 13. Nc4 {[%emt 0:00:10]} g6 {[%emt 0:00:09]} (13... Ne8 $14) 14. a4 $16 {[%emt 0:00:04]} Nd7 {[%emt 0:00:08]} 15. Be3 {[%emt 0:00:04]} Kb8 {[%emt 0:00:11]} 16. b5 {[%emt 0:00:10]} Nb6 {[%emt 0:00:13]} 17. bxc6 {[%emt 0:00:23]} ({White should play} 17. Nxb6 $16 {Strongly threatening Nc4.} cxb6 18. bxc6) 17... Nxc4 $11 {[%emt 0:00:07]} 18. dxc4 {[%emt 0:00:01]} Rxd1+ {[%emt 0:00:21]} 19. Rxd1 {[%emt 0:00:02]} Rd8 {[%emt 0:00:02]} (19... Qxc4 $11 20. cxb7 Kxb7) 20. Rxd8+ $16 {[%emt 0:00:44] Black is now going downhill.} Bxd8 {[%emt 0:00:01][%mdl 4096] Endgame KQB-KQB} 21. Qd1 $1 {[%emt 0:00:01] White is more active.} Be7 {[%emt 0:01:26]} 22. cxb7 {[%emt 0:00:11]} Kxb7 {[%emt 0:00:21]} (22... c6 $16 23. Qb3 c5) 23. Qd5+ $18 {[%emt 0:00:15]} Qxd5 {[%emt 0:00:11]} 24. cxd5 {[%emt 0:00:01] KB-KB} Ka6 {[%emt 0:00:01] [#]} 25. Kf1 $1 {[%emt 0:00:27]} f5 {[%emt 0:00:26]} 26. f3 {[%emt 0:00:10][%cal Bf2f3,Bf3e4][%mdl 32]} fxe4 {[%emt 0:00:27]} 27. fxe4 {[%emt 0:00:02]} Ka5 {[%emt 0:00:01]} 28. Bxa7 {[%emt 0:00:01]} Kxa4 {[%emt 0:00:01] [#]} 29. Ke2 $1 {[%emt 0:00:02]} Kb5 {[%emt 0:00:09]} 30. Kd3 {[%emt 0:00:03]} Bc5 $2 {[%emt 0:00:01]} (30... Bg5 $18 31. c4+ Ka6) 31. c4+ {[%emt 0:00:58][%cal Bc3c4,Bc4c5,Bc5c6][%mdl 32] White mates.} Kb4 {[%emt 0:00:02]} 32. Bxc5+ {[%emt 0:00:03]} Kxc5 {[%emt 0:00:01] KP-KP} 33. h4 {[%emt 0:00:02]} Kb4 {[%emt 0:00:10]} 34. g3 {[%emt 0:00:03]} Ka5 {[%emt 0:00:10]} 35. c5 {[%emt 0:00:13]} Kb5 {[%emt 0:00:01]} 36. c6 {[%emt 0:00:01]} Kc5 {[%emt 0:00:10]} 37. Kc3 {[%emt 0:00:01]} Kb5 {[%emt 0:00:01]} 38. Kb3 {[%emt 0:00:02] Weighted Error Value: White=0.09 (flawless) /Black=0.39} 1-0

[Event "Superbet Blitz Poland 2023"]
[Site "Warsaw"]
[Date "2023.05.25"]
[Round "16"]
[White "Carlsen, Magnus"]
[Black "Giri, Anish"]
[Result "1/2-1/2"]
[ECO "D14"]
[WhiteElo "2853"]
[BlackElo "2768"]
[Annotator "TA"]
[PlyCount "118"]
[EventDate "2023.05.24"]
[EventType "tourn"]
[EventCountry "POL"]
[SourceTitle "playchess.com"]
[Source "ChessBase"]
[SourceQuality "1"]
[TimeControl "300+2"]

{[%evp 20,118,0,0,0,0,12,6,12,10,8,8,9,10,14,11,38,25,33,29,37,16,28,0,16,0,7,8,48,0,0,0,50,50,50,50,58,58,58,58,58,58,58,58,58,58,58,58,58,58,58,58,58,58,58,58,58,58,58,58,58,58,58,43,43,43,58,58,58,58,45,6,108,108,108,8,108,108,108,86,108,86,306,306,306,306,306,306,306,197,197,197,197,197,197,0,0,0,0,0,0]} 1. d4 {[%emt 0:00:01]} d5 {[%emt 0:00:02]} 2. c4 {[%emt 0:00:10]} c6 {[%emt 0:00:00]} 3. Nf3 {[%emt 0:00:09]} Nf6 {[%emt 0:00:01]} 4. cxd5 {[%emt 0:00:07]} cxd5 {[%emt 0:00:01]} 5. Nc3 {[%emt 0:00:02]} Nc6 {[%emt 0:00:01]} 6. Bf4 {[%emt 0:00:03]} Bf5 {[%emt 0:00:02]} 7. e3 {[%emt 0:00:03]} e6 {[%emt 0:00:01]} 8. Qb3 {[%emt 0:00:08]} Bb4 {[%emt 0:00:02]} 9. Bb5 {[%emt 0:00:02]} O-O {[%emt 0:00:01]} 10. Bxc6 $1 {[%emt 0:00:01][%mdl 4] is recently more successful than 10.0-0.} Bxc3+ {[%emt 0:00:02]} 11. Qxc3 {[%emt 0:00:02]} Rc8 {[%emt 0:00:00][%mdl 64] Pin. D14: Slav Defence: Exchange variation with ...Bf5.} 12. Ne5 {[%emt 0:00:02][%cal Oc3a3]} Ng4 {[%emt 0:00:01]} 13. Nxg4 {[%emt 0:00:06] Ne5 is the strong threat.} Bxg4 {[%emt 0:00:01] [#]} 14. Qb4 $1 {[%emt 0:00:05]} Rxc6 {[%emt 0:00:02] Black is weak on the dark squares} 15. Qxb7 {[%emt 0:00:01]} Qc8 {[%emt 0:00:24]} ({Don't take} 15... Rb6 16. Qxa7 Rxb2 17. O-O $16) 16. Qxc8 {[%emt 0:00:02]} Rfxc8 {[%emt 0:00:01]} 17. O-O {[%emt 0:00:02]} a5 {[%emt 0:00:25]} 18. b3 {[%emt 0:00:02]} h5 {[%emt 0:00:02]} 19. h4 {[%emt 0:00:04]} f6 {[%emt 0:00:17] [#]} 20. Kh2 $146 {[%emt 0:00:37]} ({Predecessor:} 20. Rfb1 Bf5 21. Rb2 Rc1+ 22. Rxc1 Rxc1+ 23. Kh2 Rc2 24. Rxc2 Bxc2 25. Bc7 Bb1 26. a3 {1-0 Krivonosov,O (2448)-Setkauskas,V (2159) Plunge op 31st 2011 (8)}) 20... Kh7 {[%emt 0:00:13]} 21. Kg3 {[%emt 0:00:02]} (21. f3 $5 Bf5 $8 22. Rf2 $11) 21... Kg6 {[%emt 0:00:07]} 22. Rfe1 {[%emt 0:00:11]} Bf5 {[%emt 0:00:04]} 23. Re2 {[%emt 0:00:57]} Rc1 {[%emt 0:00:17]} 24. Re1 {[%emt 0:00:04]} (24. Rxc1 $14 {should be considered.} Rxc1 25. Bd6) 24... R1c6 {[%emt 0:00:34]} ({Black should play} 24... R1c2 $11) 25. Re2 $14 {[%emt 0:00:08]} Rc1 {[%emt 0:00:01]} 26. Rxc1 {[%emt 0:00:01]} Rxc1 {[%emt 0:00:00][%mdl 4096] Endgame KRB-KRB} 27. Bd6 {[%emt 0:00:02]} Rc2 {[%emt 0:00:05]} 28. Rxc2 {[%emt 0:00:01]} Bxc2 {[%emt 0:00:01] KB-KB} 29. Kf4 {[%emt 0:00:02]} Bb1 {[%emt 0:00:13]} 30. a3 {[%emt 0:00:01]} Bc2 {[%emt 0:00:05]} 31. b4 {[%emt 0:00:01]} axb4 {[%emt 0:00:01]} 32. Bxb4 {[%emt 0:00:02]} Kf7 {[%emt 0:00:04]} 33. f3 {[%emt 0:00:02][%cal Bf2f3,Bf3e4,Be4e5][%mdl 32]} Ba4 {[%emt 0:00:30]} 34. e4 {[%emt 0:00:25]} dxe4 {[%emt 0:00:14]} 35. fxe4 {[%emt 0:00:04]} Bc6 {[%emt 0:00:01]} 36. g3 {[%emt 0:00:01]} Ke8 {[%emt 0:00:02]} 37. e5 {[%emt 0:00:04]} Kf7 {[%emt 0:00:17]} 38. Bc5 {[%emt 0:00:14]} Kg6 {[%emt 0:00:02]} 39. Be7 {[%emt 0:00:13]} Kf7 {[%emt 0:00:01]} 40. Bd8 {[%emt 0:00:02]} Ba4 {[%emt 0:00:20]} 41. exf6 {[%emt 0:00:39]} gxf6 {[%emt 0:00:01]} 42. g4 {[%emt 0:00:01]} e5+ {[%emt 0:00:35]} 43. dxe5 {[%emt 0:00:38]} fxe5+ {[%emt 0:00:01]} 44. Kg3 {[%emt 0:00:01]} hxg4 {[%emt 0:00:03]} 45. h5 {[%emt 0:00:01][%cal Bh4h5,Bh5h6][%mdl 32]} Ke6 {[%emt 0:00:12] [#]} (45... Bd1 $11) 46. h6 $1 $16 {[%emt 0:00:12][%cal Oh6h7] Intending h7! and mate.} Bc2 {[%emt 0:00:01]} 47. a4 {[%emt 0:00:01]} (47. Kxg4 $16 {[%cal Oa3a4] Threatening a4!} Bf5+ 48. Kf3) 47... Kd7 {[%emt 0:00:00]} (47... Kf7 $1 $11) 48. Bb6 {[%emt 0:00:02]} Kc6 {[%emt 0:00:01]} 49. a5 {[%emt 0:00:01][%cal Ba4a5,Ba5a6][%mdl 32]} Kb7 {[%emt 0:00:02]} 50. Kxg4 {[%emt 0:00:02]} (50. Be3 {with more complications.} Ka6 51. Bd2 Bf5 52. Bb4) 50... Ka8 $2 {[%emt 0:00:02]} (50... Ka6 $16 {was worth a try.}) 51. a6 $18 {[%emt 0:00:02]} Kb8 {[%emt 0:00:01]} 52. Kg5 {[%emt 0:00:01]} Ka8 {[%emt 0:00:01]} 53. Kf6 {[%emt 0:00:01]} Kb8 {[%emt 0:00:01]} 54. Kxe5 {[%emt 0:00:03]} Ka8 {[%emt 0:00:01]} 55. Kf6 {[%emt 0:00:02]} Bd3 {[%emt 0:00:01]} 56. Kg7 {[%emt 0:00:02]} Be4 {[%emt 0:00:01] [#]} 57. Ba7 $2 {[%emt 0:00:05]} Kxa7 $11 {[%emt 0:00:01] The position is equal.} 58. h7 {[%emt 0:00:01]} Bxh7 {[%emt 0:00:01]} 59. Kxh7 {[%emt 0:00:01]} Kxa6 {Weighted Error Value: White=0.15 (very precise) /Black=0.21 (precise)} 1/2-1/2

[Event "Superbet Blitz Poland 2023"]
[Site "Warsaw"]
[Date "2023.05.25"]
[Round "16"]
[White "So, Wesley"]
[Black "Vachier-Lagrave, Maxime"]
[Result "1/2-1/2"]
[ECO "D85"]
[WhiteElo "2760"]
[BlackElo "2742"]
[Annotator "TA"]
[PlyCount "49"]
[EventDate "2023.05.24"]
[EventType "tourn"]
[EventCountry "POL"]
[SourceTitle "playchess.com"]
[Source "ChessBase"]
[SourceQuality "1"]
[TimeControl "300+2"]

{[%evp 23,49,9,26,3,17,19,19,0,0,0,0,0,0,0,0,0,0,0,0,-22,0,0,0,0,0,0,0,0]} 1. d4 {[%emt 0:00:02]} Nf6 {[%emt 0:00:01]} 2. c4 {[%emt 0:00:02]} g6 {[%emt 0:00:01]} 3. Nc3 {[%emt 0:00:01]} d5 {[%emt 0:00:01]} 4. cxd5 {[%emt 0:00:03]} Nxd5 {[%emt 0:00:02]} 5. e4 {[%emt 0:00:01]} Nxc3 {[%emt 0:00:01]} 6. bxc3 {[%emt 0:00:02]} Bg7 {[%emt 0:00:01]} 7. Nf3 {[%emt 0:00:01]} c5 {[%emt 0:00:02]} 8. Rb1 {[%emt 0:00:01]} O-O {[%emt 0:00:02]} 9. Be2 {[%emt 0:00:02]} cxd4 {[%emt 0:00:01]} 10. cxd4 {[%emt 0:00:02]} Qa5+ {[%emt 0:00:01]} 11. Bd2 {[%emt 0:00:01]} Qxa2 {[%emt 0:00:02]} 12. O-O {[%emt 0:00:02]} Bg4 {[%emt 0:00:02]} 13. Rxb7 {[%emt 0:00:03] D85: Exchange Grünfeld: Unusual White 7th moves and lines with 7 Nf3.} Bxf3 {[%emt 0:00:02] The position is equal.} 14. Bxf3 {[%emt 0:00:02] [#] Black must now prevent e5.} Bxd4 {[%emt 0:00:03]} 15. e5 {[%emt 0:00:06]} Na6 {[%emt 0:00:05][%cal Bb8a6,Ba6c5,Bc5d3,Bd3e1][%mdl 32]} 16. Rxe7 {[%emt 0:00:06]} Rad8 {[%emt 0:00:03] Strongly threatening ...Bc5.} 17. e6 {[%emt 0:00:02]} fxe6 {[%emt 0:00:03]} 18. Qe1 {[%emt 0:00:05]} Nc5 {[%emt 0:00:01]} 19. Bc3 {[%emt 0:00:08] [#] Hoping for Bxd4.} Nd3 $5 $146 {[%emt 0:00:20][%mdl 8] New and interesting.} ({Predecessor:} 19... Qc4 20. Bxd4 Qxd4 21. Rxa7 e5 22. Qc1 Ne6 23. Rb7 e4 24. Bg4 Nc5 25. Rc7 Rxf2 26. Rxf2 {1-0 Matthiesen,M (2263)-Thogersen,R (2380) Aarhus-ch 2023 (2)}) 20. Bxd4 $1 {[%emt 0:00:01] This pair of bishops is nice.} Nxe1 {[%emt 0:00:02]} 21. Rg7+ {[%emt 0:00:02]} Kh8 {[%emt 0:00:01]} 22. Rd7+ {[%emt 0:00:01]} Kg8 {[%emt 0:00:01]} (22... e5 $2 23. Bxe5+ $18) 23. Rg7+ {[%emt 0:00:01]} Kh8 {[%emt 0:00:01]} 24. Rd7+ {[%emt 0:00:01]} Kg8 {[%emt 0:00:01]} (24... e5 $2 25. Bxe5+ $18) 25. Rg7+ {[%emt 0:00:01] Not much happened in this game. An exciting game.   Weighted Error Value: White=0.04 (flawless) /Black=0.00 (flawless)} 1/2-1/2

[Event "Superbet Blitz Poland 2023"]
[Site "Warsaw"]
[Date "2023.05.25"]
[Round "16"]
[White "Deac, Bogdan-Daniel"]
[Black "Duda, Jan-Krzysztof"]
[Result "0-1"]
[ECO "B10"]
[WhiteElo "2700"]
[BlackElo "2724"]
[Annotator "TA"]
[PlyCount "158"]
[EventDate "2023.05.24"]
[EventType "tourn"]
[EventCountry "POL"]
[SourceTitle "playchess.com"]
[Source "ChessBase"]
[SourceQuality "1"]
[TimeControl "300+2"]

{[%evp 9,158,9,18,11,20,0,32,31,39,0,0,0,0,0,7,0,0,6,6,6,11,0,0,0,19,0,0,0,0,0,0,0,0,0,0,-16,-20,-15,-14,-14,-15,-7,-11,-39,-39,-45,-29,-54,-55,-56,-51,-88,-42,-40,-40,-37,-25,-104,-103,-116,-93,-135,-135,-153,-128,-165,-165,-159,-164,-205,-197,-214,-214,-243,-217,-217,-217,-291,-217,-252,-250,-553,-637,-696,-709,-626,-507,-559,-517,-660,-657,-658,-641,-2404,-2368,-1313,-504,-587,-568,-612,-605,-751,-688,-745,-660,-706,-633,-588,-580,-715,0,-489,0,-462,-260,-1448,-1343,-29954,-29955,-29969,-29972,-29979,-29980,-29978,-2226,-6195,-4133,-29970,-29971,-29971,-29972,-29972,-29973,-29973,-29974,-29974,-29974,-29977,-29979,-29979,-29980,-29977,-29980,-29980,-29981,-29982,-29983,-29986,-29987,-29987,-29988]} 1. e4 {[%emt 0:00:02]} c6 {[%emt 0:00:03]} 2. Nf3 {[%emt 0:00:03]} d5 {[%emt 0:00:01]} 3. d3 {[%emt 0:00:01]} Qc7 {[%emt 0:00:02]} 4. exd5 {[%emt 0:00:08]} cxd5 {[%emt 0:00:01]} 5. c4 {[%emt 0:00:01]} Nf6 {[%emt 0:00:02]} 6. Nc3 {[%emt 0:00:01] B10: Caro-Kann: 2 d3 and 2 c4.} e6 {[%emt 0:00:01]} 7. a3 {[%emt 0:00:01]} dxc4 $5 {[%emt 0:00:13][%mdl 4] Exploring less charted territory.} 8. dxc4 {[%emt 0:00:01] Black must now prevent Nb5. White is slightly better.} a6 {[%emt 0:00:02] Repels Nb5} 9. g3 {[%emt 0:00:48]} (9. Be3 {with more complications.} Ng4 10. Bg5 Ne5 11. Bf4) 9... Bd6 {[%emt 0:00:02] Repels Bf4} 10. Bg2 {[%emt 0:00:01]} b6 {[%emt 0:00:06]} 11. O-O {[%emt 0:00:02]} Bb7 {[%emt 0:00:01]} 12. Qd3 {[%emt 0:00:00]} Nc6 {[%emt 0:00:42]} 13. Be3 {[%emt 0:00:12]} Rd8 {[%emt 0:00:50][%cal Od6g3] [#]} 14. Qe2 $146 {[%emt 0:00:53]} ({Predecessor:} 14. Na4 Ne5 15. Qe2 Qxc4 16. Qxc4 Nxc4 17. Bxb6 Nxb6 18. Nxb6 O-O 19. b4 Rb8 20. Nc4 {1-0 Ponkratov,P (2624)-Murzin,V (2542) RUS-chT 29th 2022 (2.2)}) 14... Na5 {[%emt 0:00:03]} 15. Nd2 {[%emt 0:00:02][%cal Oc3d5] Nd5! is the strong threat.} Bxg2 {[%emt 0:00:18]} 16. Kxg2 {[%emt 0:00:02][%cal Oc3d5]} O-O {[%emt 0:00:44]} 17. Rac1 {[%emt 0:00:33]} (17. b4 $5 {[%cal Rb4a5]} Nc6 18. Na4 $11) 17... Bc5 {[%emt 0:00:40]} 18. Bg5 {[%emt 0:00:26] Threatens to win with b4.} Nc6 {[%emt 0:00:18]} 19. Bxf6 {[%emt 0:01:57]} gxf6 {[%emt 0:00:01]} 20. Nf3 {[%emt 0:00:03]} f5 {[%emt 0:00:12]} 21. Rfd1 {[%emt 0:00:08]} Qb7 {[%emt 0:00:18]} 22. Kg1 {[%emt 0:00:05]} Nd4 {[%emt 0:00:04]} 23. Nxd4 {[%emt 0:00:02]} Bxd4 {[%emt 0:00:01]} 24. Nd5 {[%emt 0:00:08]} Bg7 {[%emt 0:00:22]} 25. Nf4 {[%emt 0:00:01]} Qe4 {[%emt 0:00:01]} 26. Re1 {[%emt 0:00:01]} Qxe2 {[%emt 0:00:10]} 27. Rxe2 {[%emt 0:00:01]} Rd4 {[%emt 0:00:14]} 28. c5 {[%emt 0:00:02]} Rc8 {[%emt 0:00:11]} 29. b4 {[%emt 0:00:07]} Bh6 {[%emt 0:00:02]} 30. Rc3 {[%emt 0:00:05]} bxc5 {[%emt 0:00:04]} (30... a5 $17 31. Rd3 bxc5 32. bxc5 Rc4) 31. bxc5 $15 {[%emt 0:00:01]} Bxf4 {[%emt 0:00:05]} 32. gxf4 {[%emt 0:00:01]} Rxf4 $17 {[%emt 0:00:01][%mdl 4096] Endgame KRR-KRR} 33. Rd2 {[%emt 0:00:03] [#]} (33. Rb2 $11 {keeps the balance.}) 33... Rc6 $1 {[%emt 0:00:04] White is on the road to losing.} 34. Rd7 {[%emt 0:00:03]} Kg7 {[%emt 0:00:02]} 35. h3 {[%emt 0:00:02]} Kf6 {[%emt 0:00:01]} 36. Kg2 {[%emt 0:00:03]} Re4 {[%emt 0:00:01]} 37. Rd2 {[%emt 0:00:02]} Re5 {[%emt 0:00:02]} 38. Rdc2 {[%emt 0:00:00]} Rd5 {[%emt 0:00:01]} 39. Rc4 {[%emt 0:00:02]} h5 {[%emt 0:00:02]} 40. h4 {[%emt 0:00:02]} e5 {[%emt 0:00:03]} 41. a4 {[%emt 0:00:02]} a5 {[%emt 0:00:03]} 42. f3 {[%emt 0:00:02]} f4 {[%emt 0:00:02]} 43. R4c3 {[%emt 0:00:02]} Rd4 {[%emt 0:00:04]} 44. Rb2 {[%emt 0:00:03]} Rxa4 {[%emt 0:00:03]} 45. Rb7 {[%emt 0:00:01]} (45. Rb6 Rxb6 46. cxb6) 45... Rb4 $19 {[%emt 0:00:03]} 46. Ra7 {[%emt 0:00:01]} Rb5 {[%emt 0:00:01]} 47. Rd3 {[%emt 0:00:01]} Rbxc5 {[%emt 0:00:02]} 48. Rdd7 {[%emt 0:00:01]} Ke6 {[%emt 0:00:02]} 49. Re7+ {[%emt 0:00:02]} Kd5 {[%emt 0:00:01] aiming for ...Kd4.} 50. Red7+ {[%emt 0:00:06]} Rd6 {[%emt 0:00:01]} 51. Rxf7 {[%emt 0:00:01]} Rg6+ {[%emt 0:00:01]} 52. Kf2 {[%emt 0:00:02]} Kc4 {[%emt 0:00:07]} (52... Rc2+ $142 53. Kf1 Kd4) 53. Rfd7 {[%emt 0:00:03]} Kb4 {[%emt 0:00:03]} 54. Rdb7+ {[%emt 0:00:02]} Rb5 {[%emt 0:00:01]} 55. Rd7 {[%emt 0:00:02]} Rc6 {[%emt 0:00:02]} 56. Rd2 {[%emt 0:00:02]} Rc3 {[%emt 0:00:02]} 57. Rb2+ {[%emt 0:00:02]} Rb3 {[%emt 0:00:01]} 58. Ra2 {[%emt 0:00:01]} Ra3 {[%emt 0:00:02]} 59. Re2 {[%emt 0:00:02]} Rc3 {[%emt 0:00:03] Hoping for ...Kb3.} 60. Rb2+ {[%emt 0:00:03]} Rb3 $2 {[%emt 0:00:02]} (60... Ka4 $19 61. Re2 Kb3) 61. Re2 $2 {[%emt 0:00:03][%mdl 8192]} (61. Ra2 $1 $11 {and White is okay.} Ra3 62. Rb2+ Ka4 63. Rxb5 Kxb5 64. Re7) 61... Rb1 {[%emt 0:00:02]} (61... Ka3 $142 {Strongly threatening ...Rb2.} 62. Re1 Rb2+ 63. Kg1 Ka2) 62. Rd7 $2 {[%emt 0:00:03]} (62. Ra2) 62... a4 {[%emt 0:00:03] ( -> ...a3)} 63. Re4+ {[%emt 0:00:01]} Ka3 {[%emt 0:00:02]} 64. Rd3+ {[%emt 0:00:03]} R5b3 {[%emt 0:00:01]} 65. Rd5 {[%emt 0:00:02]} R3b2+ {[%emt 0:00:01]} 66. Re2 {[%emt 0:00:01]} Rxe2+ {[%emt 0:00:02]} (66... Kb4 $142 67. Rd8 a3 68. Rh8 a2 69. Rb8+ Kc3 70. Rc8+ Kd3 71. Rd8+ Kc4 72. Rc8+ Kd5 73. Rd8+ Kc6 74. Ra8 Rxe2+ 75. Kxe2 a1=Q 76. Rxa1 Rxa1 77. Kd2 Kc5 78. Ke2 Kc4 79. Kd2 Ra2+ 80. Kd1 Kd3 81. Ke1 Rg2 82. Kf1 Rg8 83. Ke1 Ke3 84. Kd1 Rc8 85. Ke1 Rc1#) 67. Kxe2 {[%emt 0:00:00] KR-KR} Kb3 {[%emt 0:00:03]} 68. Rxe5 {[%emt 0:00:03]} a3 {[%emt 0:00:01] Black mates.} 69. Rb5+ {[%emt 0:00:01]} Kc2 {[%emt 0:00:01]} 70. Rc5+ {[%emt 0:00:00] [#]} Kb2 $1 {[%emt 0:00:02]} 71. Rb5+ {[%emt 0:00:02]} Ka1 {[%emt 0:00:01]} 72. Rxh5 {[%emt 0:00:01]} a2 {[%emt 0:00:03]} 73. Kd3 {[%emt 0:00:02]} Kb2 {[%emt 0:00:02]} 74. Rb5+ {[%emt 0:00:01]} Kc1 {[%emt 0:00:04]} 75. Ra5 {[%emt 0:00:04]} a1=Q {[%emt 0:00:02]} ({Stronger than} 75... a1=B 76. h5 $11) 76. Rxa1 {[%emt 0:00:02]} Rxa1 {[%emt 0:00:01]} 77. Ke4 {[%emt 0:00:01]} Ra4+ {[%emt 0:00:01]} 78. Kf5 {[%emt 0:00:01]} Kd2 {[%emt 0:00:01]} 79. h5 {[%emt 0:00:03]} Ke3 {[%emt 0:00:01] Weighted Error Value: White=0.42/Black=0.08 (flawless)} 0-1